[Event "Chess Festival Groningen 2023 | A"]
[Site "Groningen, Netherlands"]
[Date "2023.12.26"]
[Round "5.18"]
[White "Elgersma, Onno"]
[Black "Nicolai, Amir"]
[Result "1/2-1/2"]
[TimeControl "90min/40moves + 30min + 30sec/move"]
[WhiteElo "2310"]
[BlackElo "2156"]

1. e4 {[%clk 01:30:56]} {[%emt 00:00:02]} e5 {[%clk 01:30:53]} {[%emt
00:00:08]} 2. Nf3 {[%clk 01:31:15]} {[%emt 00:00:11]} Nc6 {[%clk 01:31:11]}
{[%emt 00:00:12]} 3. Bb5 {[%clk 01:31:26]} {[%emt 00:00:19]} a6 {[%clk
01:31:32]} {[%emt 00:00:09]} 4. Ba4 {[%clk 01:31:51]} {[%emt 00:00:05]} Nf6
{[%clk 01:31:52]} {[%emt 00:00:09]} 5. O-O {[%clk 01:30:33]} {[%emt 00:01:49]}
Bc5 {[%clk 01:28:34]} {[%emt 00:03:48]} 6. c3 {[%clk 01:28:18]} {[%emt
00:02:45]} O-O {[%clk 01:28:26]} {[%emt 00:00:38]} 7. d4 {[%clk 01:28:04]}
{[%emt 00:00:44]} Ba7 {[%clk 01:28:48]} {[%emt 00:00:08]} 8. dxe5 {[%clk
01:26:03]} {[%emt 00:02:31]} Nxe4 {[%clk 01:29:06]} {[%emt 00:00:12]} 9. Bc2
{[%clk 01:25:15]} {[%emt 00:01:17]} d5 {[%clk 01:28:19]} {[%emt 00:01:17]} 10.
exd6 {[%clk 01:18:57]} {[%emt 00:06:49]} Nxd6 {[%clk 01:28:17]} {[%emt
00:00:31]} 11. Bg5 {[%clk 01:10:09]} {[%emt 00:09:17]} f6 {[%clk 01:26:32]}
{[%emt 00:02:16]} 12. Bf4 {[%clk 01:10:14]} {[%emt 00:00:25]} g5 {[%clk
01:22:37]} {[%emt 00:04:25]} 13. Qd3 {[%clk 01:00:51]} {[%emt 00:09:53]} Qd7
{[%clk 01:16:41]} {[%emt 00:06:26]} 14. Bxd6 {[%clk 01:00:15]} {[%emt
00:01:06]} cxd6 {[%clk 01:17:07]} {[%emt 00:00:04]} 15. Nbd2 {[%clk 00:59:19]}
{[%emt 00:01:25]} Ne5 {[%clk 01:12:36]} {[%emt 00:05:01]} 16. Qd5+ {[%clk
00:56:00]} {[%emt 00:03:50]} Qe6 {[%clk 01:09:13]} {[%emt 00:03:52]} 17. Bb3
{[%clk 00:53:56]} {[%emt 00:02:35]} Qxd5 {[%clk 01:09:23]} {[%emt 00:00:20]} 18.
Bxd5+ {[%clk 00:54:23]} {[%emt 00:00:03]} Kg7 {[%clk 01:09:38]} {[%emt
00:00:15]} 19. Rad1 {[%clk 00:47:16]} {[%emt 00:07:36]} Rb8 {[%clk 00:57:13]}
{[%emt 00:12:55]} 20. Nc4 {[%clk 00:42:30]} {[%emt 00:05:15]} Rd8 {[%clk
00:56:24]} {[%emt 00:01:19]} 21. Rfe1 {[%clk 00:35:12]} {[%emt 00:07:46]} Bg4
{[%clk 00:46:58]} {[%emt 00:09:58]} 22. Ne3 {[%clk 00:32:10]} {[%emt 00:03:33]}
Bxe3 {[%clk 00:41:46]} {[%emt 00:05:43]} 23. Rxe3 {[%clk 00:26:08]} {[%emt
00:06:32]} Bxf3 {[%clk 00:41:40]} {[%emt 00:00:35]} 24. Bxf3 {[%clk 00:26:18]}
{[%emt 00:00:20]} Nxf3+ {[%clk 00:41:40]} {[%emt 00:00:30]} 25. Rxf3 {[%clk
00:26:04]} {[%emt 00:00:45]} Rbc8 {[%clk 00:41:11]} {[%emt 00:00:59]} 26. h4
{[%clk 00:23:37]} {[%emt 00:02:57]} h6 {[%clk 00:40:21]} {[%emt 00:01:19]} 27.
Rfd3 {[%clk 00:21:41]} {[%emt 00:02:27]} Rc6 {[%clk 00:40:28]} {[%emt
00:00:23]} 28. Re1 {[%clk 00:21:44]} {[%emt 00:00:26]} Kf7 {[%clk 00:39:41]}
{[%emt 00:01:17]} 29. hxg5 {[%clk 00:21:36]} {[%emt 00:00:40]} hxg5 {[%clk
00:39:49]} {[%emt 00:00:21]} 30. Rh3 {[%clk 00:21:42]} {[%emt 00:00:24]} b5
{[%clk 00:34:37]} {[%emt 00:05:43]} 31. Rh7+ {[%clk 00:17:31]} {[%emt
00:04:40]} Kg6 {[%clk 00:33:59]} {[%emt 00:01:06]} 32. Ra7 {[%clk 00:16:53]}
{[%emt 00:01:10]} Kf5 {[%clk 00:29:35]} {[%emt 00:04:54]} 33. f3 {[%clk
00:14:32]} {[%emt 00:02:52]} d5 {[%clk 00:17:37]} {[%emt 00:12:27]} 34. g4+
{[%clk 00:13:49]} {[%emt 00:01:12]} Kf4 {[%clk 00:14:21]} {[%emt 00:03:46]} 35.
Kg2 {[%clk 00:13:03]} {[%emt 00:01:16]} Rdd6 {[%clk 00:14:39]} {[%emt
00:00:11]} 36. Rd1 {[%clk 00:05:08]} {[%emt 00:08:26]} f5 {[%clk 00:06:04]}
{[%emt 00:09:05]} 37. Rf7 {[%clk 00:02:51]} {[%emt 00:02:47]} Rf6 {[%clk
00:06:18]} {[%emt 00:00:16]} 38. Re7 {[%clk 00:00:50]} {[%emt 00:02:31]} Rce6
{[%clk 00:02:02]} {[%emt 00:04:47]} 39. Rd4+ {[%clk 00:01:00]} {[%emt
00:00:21]} Ke5 {[%clk 00:02:14]} {[%emt 00:00:17]} 40. Rd7 {[%clk 00:01:08]}
{[%emt 00:00:22]} Rd6 {[%clk 00:02:25]} {[%emt 00:00:19]} 41. Re7+ {[%clk
00:28:05]} {[%emt 00:03:34]} Rde6 {[%clk 00:28:36]} {[%emt 00:04:19]} 42. Rg7
{[%clk 00:23:45]} {[%emt 00:04:49]} Rg6 {[%clk 00:26:00]} {[%emt 00:03:06]} 43.
Rxg6 {[%clk 00:18:07]} {[%emt 00:06:09]} Rxg6 {[%clk 00:26:27]} {[%emt
00:00:03]} 44. gxf5 {[%clk 00:18:32]} {[%emt 00:00:06]} Rf6 {[%clk 00:23:40]}
{[%emt 00:03:17]} 45. Kg3 {[%clk 00:09:41]} {[%emt 00:09:22]} Rxf5 {[%clk
00:21:32]} {[%emt 00:02:37]} 46. Kg4 {[%clk 00:07:47]} {[%emt 00:02:24]} Rf8
{[%clk 00:18:40]} {[%emt 00:03:22]} 47. Rd3 {[%clk 00:07:10]} {[%emt 00:01:08]}
Rg8 {[%clk 00:17:23]} {[%emt 00:01:46]} 48. Rd2 {[%clk 00:06:40]} {[%emt
00:01:01]} a5 {[%clk 00:17:00]} {[%emt 00:00:53]} 49. Re2+ {[%clk 00:06:36]}
{[%emt 00:00:34]} Kf6 {[%clk 00:14:48]} {[%emt 00:02:40]} 50. Rh2 {[%clk
00:06:53]} {[%emt 00:00:14]} b4 {[%clk 00:12:28]} {[%emt 00:02:50]} 51. Rh6+
{[%clk 00:06:49]} {[%emt 00:00:33]} Ke5 {[%clk 00:10:30]} {[%emt 00:02:27]} 52.
Rc6 {[%clk 00:06:07]} {[%emt 00:01:13]} bxc3 {[%clk 00:09:56]} {[%emt
00:01:05]} 53. bxc3 {[%clk 00:06:33]} {[%emt 00:00:03]} Rf8 {[%clk 00:09:55]}
{[%emt 00:00:30]} 54. Rg6 {[%clk 00:02:54]} {[%emt 00:04:09]} Rf4+ {[%clk
00:09:41]} {[%emt 00:00:44]} 55. Kg3 {[%clk 00:03:21]} {[%emt 00:00:04]}
1/2-1/2

[Event "Chess Festival Groningen 2023 | A"]
[Site "Groningen, Netherlands"]
[Date "2023.12.26"]
[Round "5.19"]
[White "Albers, Sasa"]
[Black "Kanyamarala, Tarun"]
[Result "0-1"]
[TimeControl "90min/40moves + 30min + 30sec/move"]
[WhiteElo "2192"]
[BlackElo "2305"]

1. e4 {[%clk 01:30:57]} {[%emt 00:00:11]} c5 {[%clk 01:30:52]} 2. Nf3 {[%clk
01:31:23]} d6 {[%clk 01:31:17]} 3. d4 {[%clk 01:31:49]} cxd4 {[%clk 01:31:41]}
4. Nxd4 {[%clk 01:32:14]} Nf6 {[%clk 01:32:06]} 5. Nc3 {[%clk 01:32:38]} a6
{[%clk 01:32:31]} 6. Be3 {[%clk 01:32:22]} {[%emt 00:00:54]} Ng4 {[%clk
01:31:03]} {[%emt 00:02:09]} 7. Bg5 {[%clk 01:29:53]} {[%emt 00:02:27]} h6
{[%clk 01:31:24]} {[%emt 00:00:20]} 8. Bh4 {[%clk 01:30:19]} g5 {[%clk
01:31:49]} 9. Bg3 {[%clk 01:30:45]} {[%emt 00:00:05]} Bg7 {[%clk 01:32:03]}
{[%emt 00:00:09]} 10. h3 {[%clk 01:31:10]} {[%emt 00:00:29]} Nf6 {[%clk
01:32:15]} {[%emt 00:00:09]} 11. Be2 {[%clk 01:25:15]} {[%emt 00:06:10]} Qb6
{[%clk 01:27:59]} {[%emt 00:04:48]} 12. Nb3 {[%clk 01:23:15]} {[%emt 00:02:28]}
Nc6 {[%clk 01:26:39]} {[%emt 00:01:49]} 13. Qd2 {[%clk 01:20:21]} {[%emt
00:03:25]} Be6 {[%clk 01:18:56]} {[%emt 00:08:12]} 14. Rd1 {[%clk 01:11:03]}
{[%emt 00:10:05]} Rc8 {[%clk 01:14:26]} {[%emt 00:04:44]} 15. h4 {[%clk
01:02:10]} {[%emt 00:09:39]} g4 {[%clk 01:10:03]} {[%emt 00:05:10]} 16. h5
{[%clk 00:57:17]} {[%emt 00:04:59]} Qd8 {[%clk 00:55:05]} {[%emt 00:16:02]} 17.
Qe3 {[%clk 00:53:10]} {[%emt 00:03:55]} Nb4 {[%clk 00:49:30]} {[%emt 00:06:26]}
18. Rd2 {[%clk 00:50:51]} {[%emt 00:02:36]} b5 {[%clk 00:31:30]} {[%emt
00:18:45]} 19. Nd4 {[%clk 00:48:15]} {[%emt 00:03:28]} Qd7 {[%clk 00:28:08]}
{[%emt 00:03:38]} 20. a3 {[%clk 00:38:19]} {[%emt 00:09:58]} Nc6 {[%clk
00:27:34]} {[%emt 00:01:01]} 21. e5 {[%clk 00:36:02]} {[%emt 00:02:50]} dxe5
{[%clk 00:14:31]} {[%emt 00:13:29]} 22. Nf5 {[%clk 00:24:07]} {[%emt 00:12:25]}
Qxd2+ {[%clk 00:14:33]} {[%emt 00:00:42]} 23. Qxd2 {[%clk 00:24:08]} {[%emt
00:00:14]} Bxf5 {[%clk 00:14:56]} {[%emt 00:00:13]} 24. Bd3 {[%clk 00:22:31]}
{[%emt 00:02:02]} Be6 {[%clk 00:11:37]} {[%emt 00:03:49]} 25. Ne4 {[%clk
00:20:20]} {[%emt 00:03:07]} Nd7 {[%clk 00:11:10]} {[%emt 00:00:34]} 26. O-O
{[%clk 00:20:34]} {[%emt 00:00:34]} f5 {[%clk 00:09:22]} {[%emt 00:01:59]} 27.
f3 {[%clk 00:19:57]} {[%emt 00:01:05]} gxf3 {[%clk 00:06:02]} {[%emt 00:03:54]}
28. Rxf3 {[%clk 00:19:53]} {[%emt 00:00:29]} Nd4 {[%clk 00:05:03]} {[%emt
00:01:29]} 29. Rf1 {[%clk 00:20:22]} Bc4 {[%clk 00:02:50]} {[%emt 00:02:45]} 30.
Nc3 {[%clk 00:17:40]} {[%emt 00:03:11]} e6 {[%clk 00:02:06]} {[%emt 00:01:14]}
31. Bf2 {[%clk 00:17:28]} {[%emt 00:00:42]} Bf6 {[%clk 00:01:42]} {[%emt
00:01:01]} 32. Bxc4 {[%clk 00:16:43]} {[%emt 00:01:15]} Rxc4 {[%clk 00:02:04]}
{[%emt 00:00:04]} 33. Bxd4 {[%clk 00:13:25]} {[%emt 00:03:49]} exd4 {[%clk
00:01:10]} {[%emt 00:01:20]} 34. Ne2 {[%clk 00:12:23]} {[%emt 00:02:03]} Bg5
{[%clk 00:01:10]} {[%emt 00:00:10]} 35. Nf4 {[%clk 00:12:19]} {[%emt 00:00:23]}
e5 {[%clk 00:00:45]} {[%emt 00:00:55]} 36. Qe2 {[%clk 00:12:03]} {[%emt
00:01:35]} Bxf4 {[%clk 00:00:48]} 37. Rxf4 {[%clk 00:09:56]} {[%emt 00:02:15]}
d3 {[%clk 00:01:17]} 38. Qxd3 {[%clk 00:10:24]} {[%emt 00:00:16]} Rxf4 {[%clk
00:01:28]} {[%emt 00:00:37]} 39. Qd6 {[%clk 00:10:26]} {[%emt 00:00:13]} Rg4
{[%clk 00:01:06]} {[%emt 00:00:43]} 40. Qxa6 {[%clk 00:09:33]} {[%emt
00:01:14]} Rhg8 {[%clk 00:01:15]} {[%emt 00:00:46]} 41. Qe6+ {[%clk 00:09:55]}
Kd8 {[%clk 00:28:49]} {[%emt 00:03:18]} 42. Qxf5 {[%clk 00:40:24]} Rxg2+ {[%clk
00:28:35]} {[%emt 00:00:34]} 43. Kh1 {[%clk 00:40:39]} {[%emt 00:00:26]} R2g4
{[%clk 00:23:50]} {[%emt 00:04:38]} 44. Qf2 {[%clk 00:40:24]} {[%emt 00:00:46]}
R8g5 {[%clk 00:24:04]} {[%emt 00:00:20]} 45. Qh2 {[%clk 00:40:44]} {[%emt
00:00:05]} Nf6 {[%clk 00:24:13]} {[%emt 00:00:42]} 0-1

[Event "Chess Festival Groningen 2023 | A"]
[Site "Groningen, Netherlands"]
[Date "2023.12.26"]
[Round "5.20"]
[White "Kazarjan, Gachatur"]
[Black "De Jong, Migchiel"]
[Result "0-1"]
[TimeControl "90min/40moves + 30min + 30sec/move"]
[WhiteElo "2078"]
[BlackElo "2301"]

1. e4 {[%clk 01:30:57]} {[%emt 00:00:10]} e6 {[%clk 01:30:45]} {[%emt
00:00:21]} 2. d4 {[%clk 01:31:23]} d5 {[%clk 01:31:10]} {[%emt 00:00:11]} 3. e5
{[%clk 01:31:40]} c5 {[%clk 01:31:15]} {[%emt 00:00:23]} 4. c3 {[%clk
01:32:05]} {[%emt 00:00:32]} Ne7 {[%clk 01:29:13]} {[%emt 00:02:43]} 5. Nf3
{[%clk 01:31:01]} {[%emt 00:01:00]} Nec6 {[%clk 01:28:18]} {[%emt 00:01:24]} 6.
a3 {[%clk 01:30:52]} {[%emt 00:00:38]} a5 {[%clk 01:27:59]} {[%emt 00:00:47]} 7.
Bd3 {[%clk 01:29:13]} {[%emt 00:02:10]} b6 {[%clk 01:25:16]} {[%emt 00:03:26]}
8. Qe2 {[%clk 01:27:09]} {[%emt 00:02:39]} Ba6 {[%clk 01:25:21]} {[%emt
00:00:38]} 9. Bxa6 {[%clk 01:27:01]} {[%emt 00:00:10]} Nxa6 {[%clk 01:24:24]}
{[%emt 00:01:21]} 10. b4 {[%clk 01:22:49]} {[%emt 00:04:43]} axb4 {[%clk
01:23:50]} {[%emt 00:01:03]} 11. axb4 {[%clk 01:23:14]} {[%emt 00:00:35]} Nc7
{[%clk 01:24:00]} {[%emt 00:00:19]} 12. Rxa8 {[%clk 01:23:12]} {[%emt
00:00:05]} Qxa8 {[%clk 01:24:21]} {[%emt 00:00:10]} 13. bxc5 {[%clk 01:23:25]}
{[%emt 00:00:20]} bxc5 {[%clk 01:24:41]} {[%emt 00:00:08]} 14. O-O {[%clk
01:23:32]} {[%emt 00:00:31]} Be7 {[%clk 01:23:55]} {[%emt 00:01:05]} 15. Be3
{[%clk 01:20:51]} {[%emt 00:03:12]} c4 {[%clk 01:22:36]} {[%emt 00:01:48]} 16.
Nfd2 {[%clk 01:13:01]} {[%emt 00:08:20]} Qa2 {[%clk 01:19:05]} {[%emt
00:04:13]} 17. f4 {[%clk 01:09:28]} {[%emt 00:03:52]} Qc2 {[%clk 01:18:26]}
{[%emt 00:01:30]} 18. Rf3 {[%clk 01:03:31]} {[%emt 00:06:28]} g6 {[%clk
01:10:46]} {[%emt 00:07:46]} 19. Qe1 {[%clk 01:00:54]} {[%emt 00:03:07]} Kd7
{[%clk 01:06:08]} {[%emt 00:05:08]} 20. Bf2 {[%clk 00:56:56]} {[%emt 00:04:28]}
Rb8 {[%clk 01:05:52]} {[%emt 00:00:48]} 21. g4 {[%clk 00:57:08]} {[%emt
00:00:22]} Rb2 {[%clk 01:05:08]} {[%emt 00:01:28]} 22. Bg3 {[%clk 00:56:46]}
{[%emt 00:00:40]} Nb5 {[%clk 01:05:00]} {[%emt 00:00:31]} 23. Rf2 {[%clk
00:56:42]} {[%emt 00:00:39]} Nxc3 {[%clk 00:59:14]} {[%emt 00:06:09]} 0-1

[Event "Chess Festival Groningen 2023 | A"]
[Site "Groningen, Netherlands"]
[Date "2023.12.26"]
[Round "5.21"]
[White "Aashman, Gupta"]
[Black "Van Helvoort, Rob"]
[Result "1-0"]
[TimeControl "90min/40moves + 30min + 30sec/move"]
[WhiteFideId "45022500"]
[WhiteElo "2235"]
[BlackElo "2098"]

1. d4 {[%clk 01:30:02]} e6 {[%clk 01:30:53]} {[%emt 00:00:35]} 2. c4 {[%clk
01:28:51]} {[%emt 00:01:14]} b6 {[%clk 01:31:09]} {[%emt 00:00:41]} 3. Nc3
{[%clk 01:20:28]} {[%emt 00:08:55]} Bb7 {[%clk 01:31:13]} {[%emt 00:00:15]} 4.
Nf3 {[%clk 01:16:54]} {[%emt 00:04:16]} f5 {[%clk 01:29:14]} {[%emt 00:01:58]}
5. g3 {[%clk 01:13:56]} {[%emt 00:03:30]} Nf6 {[%clk 01:28:06]} {[%emt
00:01:35]} 6. Bg2 {[%clk 01:14:06]} {[%emt 00:00:20]} Be7 {[%clk 01:25:31]}
{[%emt 00:03:27]} 7. O-O {[%clk 01:11:25]} {[%emt 00:03:23]} O-O {[%clk
01:25:48]} {[%emt 00:00:15]} 8. d5 {[%clk 00:55:32]} {[%emt 00:15:47]} Qc8
{[%clk 01:05:24]} {[%emt 00:20:54]} 9. a3 {[%clk 00:46:16]} {[%emt 00:09:46]}
a5 {[%clk 01:03:14]} {[%emt 00:02:45]} 10. Bf4 {[%clk 00:34:17]} {[%emt
00:12:24]} Na6 {[%clk 00:53:07]} {[%emt 00:10:36]} 11. Rc1 {[%clk 00:31:31]}
{[%emt 00:03:16]} Ne8 {[%clk 00:44:29]} {[%emt 00:09:28]} 12. e4 {[%clk
00:24:26]} {[%emt 00:07:18]} fxe4 {[%clk 00:41:30]} {[%emt 00:03:47]} 13. Nxe4
{[%clk 00:24:21]} {[%emt 00:00:15]} exd5 {[%clk 00:27:26]} {[%emt 00:14:32]} 14.
cxd5 {[%clk 00:24:16]} {[%emt 00:00:34]} Nc5 {[%clk 00:27:20]} {[%emt
00:00:48]} 15. Nxc5 {[%clk 00:14:05]} {[%emt 00:10:32]} bxc5 {[%clk 00:23:16]}
{[%emt 00:04:32]} 16. Re1 {[%clk 00:13:29]} {[%emt 00:01:09]} Bd6 {[%clk
00:21:45]} {[%emt 00:02:02]} 17. Bxd6 {[%clk 00:06:19]} {[%emt 00:07:36]} cxd6
{[%clk 00:22:09]} {[%emt 00:00:09]} 18. Ng5 {[%clk 00:04:31]} {[%emt 00:02:18]}
Nf6 {[%clk 00:15:48]} {[%emt 00:06:49]} 19. Qd3 {[%clk 00:03:55]} {[%emt
00:01:13]} Re8 {[%clk 00:11:35]} {[%emt 00:04:34]} 20. Ne4 {[%clk 00:02:37]}
{[%emt 00:02:17]} Nxe4 {[%clk 00:11:06]} {[%emt 00:01:07]} 21. Bxe4 {[%clk
00:03:01]} h6 {[%clk 00:10:00]} {[%emt 00:01:37]} 22. Bg6 {[%clk 00:01:49]}
{[%emt 00:01:12]} Rxe1+ {[%clk 00:10:11]} {[%emt 00:00:44]} 23. Rxe1 {[%clk
00:02:18]} Qf8 {[%clk 00:10:26]} {[%emt 00:00:10]} 24. Re3 {[%clk 00:00:59]}
{[%emt 00:01:29]} Qf6 {[%clk 00:07:45]} {[%emt 00:03:30]} 25. Rf3 {[%clk
00:01:28]} Qe5 {[%clk 00:03:56]} {[%emt 00:04:01]} 26. Rf5 {[%clk 00:01:09]}
{[%emt 00:00:48]} Qe1+ {[%clk 00:04:18]} {[%emt 00:00:40]} 27. Qf1 {[%clk
00:00:48]} {[%emt 00:00:20]} Qxf1+ {[%clk 00:04:38]} {[%emt 00:00:37]} 28. Kxf1
{[%clk 00:01:16]} Ba6+ {[%clk 00:04:23]} {[%emt 00:00:46]} 29. Ke1 {[%clk
00:01:24]} {[%emt 00:00:09]} Bd3 {[%clk 00:04:09]} {[%emt 00:00:59]} 30. Bf7+
{[%clk 00:01:44]} {[%emt 00:00:10]} Kh7 {[%clk 00:04:11]} {[%emt 00:00:19]} 31.
Rf3 {[%clk 00:01:12]} {[%emt 00:00:40]} c4 {[%clk 00:03:35]} {[%emt 00:01:23]}
32. Kd2 {[%clk 00:00:48]} {[%emt 00:00:40]} Rb8 {[%clk 00:02:38]} {[%emt
00:01:27]} 33. Kc1 {[%clk 00:01:01]} {[%emt 00:00:19]} Rf8 {[%clk 00:01:42]}
{[%emt 00:01:28]} 34. Bg6+ {[%clk 00:01:11]} {[%emt 00:00:16]} Kg8 {[%clk
00:01:21]} {[%emt 00:00:50]} 35. Rxf8+ {[%clk 00:01:36]} {[%emt 00:00:05]} Kxf8
{[%clk 00:01:36]} {[%emt 00:00:14]} 36. Bxd3 {[%clk 00:02:03]} {[%emt
00:00:30]} a4 {[%emt 00:00:36]} 1-0

[Event "Chess Festival Groningen 2023 | A"]
[Site "Groningen, Netherlands"]
[Date "2023.12.26"]
[Round "5.22"]
[White "Toktomushev, Teimur"]
[Black "Van Batenburg, Mees"]
[Result "1-0"]
[TimeControl "90min/40moves + 30min + 30sec/move"]
[WhiteElo "2249"]
[BlackElo "2109"]

1. d4 {[%clk 01:30:58]} {[%emt 01:55:27]} e6 {[%clk 01:30:52]} 2. Nf3 {[%clk
01:30:14]} {[%emt 00:01:13]} f5 {[%clk 01:31:17]} 3. g3 {[%clk 01:30:33]}
{[%emt 00:00:09]} Nf6 {[%clk 01:31:40]} {[%emt 00:00:06]} 4. Bg2 {[%clk
01:30:54]} {[%emt 00:00:09]} Be7 {[%clk 01:32:03]} {[%emt 00:00:07]} 5. O-O
{[%clk 01:31:15]} {[%emt 00:00:08]} O-O {[%clk 01:32:13]} {[%emt 00:00:22]} 6.
c4 {[%clk 01:31:39]} {[%emt 00:00:05]} d6 {[%clk 01:32:37]} {[%emt 00:00:06]} 7.
Nc3 {[%clk 01:31:51]} {[%emt 00:00:27]} Ne4 {[%clk 01:33:01]} 8. Nxe4 {[%clk
01:31:01]} {[%emt 00:01:17]} fxe4 {[%clk 01:33:20]} {[%emt 00:00:12]} 9. Nd2
{[%clk 01:31:27]} {[%emt 00:00:06]} d5 {[%clk 01:33:42]} {[%emt 00:00:08]} 10.
f3 {[%clk 01:31:27]} {[%emt 00:00:33]} Nc6 {[%clk 01:34:02]} {[%emt 00:00:05]}
11. fxe4 {[%clk 01:31:36]} {[%emt 00:00:20]} Rxf1+ {[%clk 01:34:20]} {[%emt
00:00:12]} 12. Kxf1 {[%clk 01:31:52]} {[%emt 00:00:18]} dxc4 {[%clk 01:34:19]}
{[%emt 00:00:29]} 13. Nf3 {[%clk 01:32:09]} {[%emt 00:00:11]} b5 {[%clk
01:34:18]} {[%emt 00:00:39]} 14. Be3 {[%clk 01:31:17]} {[%emt 00:01:15]} Qe8
{[%clk 01:34:21]} {[%emt 00:00:26]} 15. d5 {[%clk 01:07:16]} {[%emt 00:24:36]}
Nb4 {[%clk 01:34:45]} {[%emt 00:00:05]} 16. a3 {[%clk 01:06:02]} {[%emt
00:01:40]} Na6 {[%clk 01:35:09]} {[%emt 00:00:07]} 17. b4 {[%clk 00:50:03]}
{[%emt 00:16:28]} Bb7 {[%clk 01:30:45]} {[%emt 00:04:54]} 18. Bh3 {[%clk
00:33:55]} {[%emt 00:16:38]} exd5 {[%clk 01:30:56]} {[%emt 00:00:19]} 19. Be6+
{[%clk 00:33:41]} {[%emt 00:00:45]} Kh8 {[%clk 01:31:19]} {[%emt 00:00:06]} 20.
Ne5 {[%clk 00:26:21]} {[%emt 00:08:32]} Bf6 {[%clk 01:29:04]} 21. Nf7+ Kg8
{[%clk 01:29:04]} 22. exd5 {[%emt 00:16:56]} Kf8 23. Ng5 {[%clk 00:06:04]}
{[%emt 00:07:43]} Qg6 {[%clk 01:16:40]} 24. Qb1 {[%clk 00:05:57]} {[%emt
00:13:45]} Qxb1+ {[%clk 01:01:16]} 25. Rxb1 {[%clk 00:05:57]} h5 {[%clk
01:01:16]} 26. Nh7+ {[%clk 00:05:57]} Ke7 {[%clk 01:01:16]} 27. Nxf6 {[%clk
00:05:57]} gxf6 {[%clk 01:01:16]} 28. a4 {[%clk 00:05:57]} c6 {[%clk 01:01:16]}
29. axb5 {[%clk 00:05:57]} cxb5 {[%clk 01:01:16]} 30. Ra1 {[%clk 00:05:57]} Nc7
{[%clk 01:01:16]} 31. Bc5+ {[%clk 00:05:57]} Ke8 {[%clk 01:01:16]} 32. Bf5
{[%clk 00:05:57]} Bxd5 {[%clk 01:01:16]} 33. Bd6 {[%clk 00:05:57]} Be6 {[%clk
01:01:16]} 34. Bg6+ {[%clk 00:05:57]} Kd7 {[%clk 01:01:16]} 35. Rd1 {[%clk
00:05:57]} Nd5 {[%clk 01:01:16]} 36. Bc5 {[%clk 00:05:57]} Kc7 {[%clk
01:01:16]} 37. Bxh5 {[%clk 00:05:57]} a6 {[%clk 01:01:16]} 38. Bf3 {[%clk
00:05:57]} Rd8 {[%clk 00:39:22]} {[%emt 00:57:12]} 39. e4 {[%clk 00:00:41]}
{[%emt 00:00:20]} Nc3 {[%clk 00:27:13]} {[%emt 00:12:38]} 40. Bb6+ {[%clk
00:00:58]} {[%emt 00:00:18]} Kxb6 {[%clk 00:27:27]} {[%emt 00:00:11]} 41. Rxd8
{[%clk 00:01:22]} {[%emt 00:00:06]} Bh3+ {[%emt 00:04:04]} 42. Ke1 {[%clk
00:15:43]} {[%emt 00:13:29]} Na2 {[%clk 00:56:30]} {[%emt 00:00:45]} 43. Rd6+
{[%clk 00:11:39]} {[%emt 00:04:28]} Ka7 {[%clk 00:56:51]} {[%emt 00:00:05]} 44.
Rxf6 {[%clk 00:11:23]} {[%emt 00:00:43]} Nxb4 {[%clk 00:57:13]} {[%emt
00:00:10]} 45. Kd2 {[%clk 00:07:50]} {[%emt 00:04:11]} Nd3 {[%clk 00:57:21]}
{[%emt 00:00:12]} 46. g4 {[%clk 00:05:02]} {[%emt 00:03:23]} Nc5 {[%clk
00:54:01]} {[%emt 00:03:44]} 47. g5 {[%clk 00:03:24]} {[%emt 00:02:14]} b4
{[%clk 00:54:25]} {[%emt 00:00:05]} 48. g6 {[%clk 00:01:02]} {[%emt 00:02:52]}
c3+ {[%clk 00:54:46]} {[%emt 00:00:09]} 49. Kc2 {[%clk 00:01:13]} {[%emt
00:00:15]} Bf1 {[%clk 00:55:01]} {[%emt 00:00:15]} 50. Rd6 {[%clk 00:00:58]}
{[%emt 00:00:50]} Bc4 {[%clk 00:54:55]} {[%emt 00:00:32]} 51. g7 {[%clk
00:01:10]} {[%emt 00:00:17]} Na4 {[%clk 00:55:06]} {[%emt 00:00:19]} 52. Bd1
{[%emt 00:01:09]} b3+ {[%clk 00:53:58]} {[%emt 00:01:35]} 53. Kb1 {[%clk
00:00:52]} {[%emt 00:00:13]} Nb2 {[%clk 00:53:48]} {[%emt 00:00:47]} 54. Bxb3
{[%clk 00:01:04]} {[%emt 00:00:11]} Bxb3 {[%clk 00:54:07]} {[%emt 00:00:11]} 55.
Rd7+ {[%clk 00:00:54]} {[%emt 00:00:40]} Kb6 {[%clk 00:54:06]} {[%emt
00:00:35]} 56. Rd8 {[%clk 00:01:13]} {[%emt 00:00:07]} Nc4 {[%clk 00:52:24]}
{[%emt 00:02:10]} 57. Rb8+ {[%clk 00:01:23]} {[%emt 00:00:25]} 1-0